[Event "Titled Tuesday Blitz October 11 Early 2022"]
[White "Chernobay, Artem"]
[Black "Dubov, Daniil"]
[WhiteFideId "4167406"]
[BlackFideId "24126055"]
[WhiteElo "2473"]
[BlackElo "2791"]
[Result "0-1"]
[Round "04"]
[TimeControl "180+1"]
[Date "2022.10.11"]
[WhiteClock "0:00:03"]
[BlackClock "0:00:08"]

1. e4 {[%clk 0:03:00]}  e5 {[%clk 0:02:59]} 2. Nc3 {[%clk 0:02:59]}  Nc6 {[%clk 0:03:00]} 3. g3 {[%clk 0:02:59]}  Nf6 {[%clk 0:02:59]} 4. Bg2 {[%clk 0:02:59]}  Bc5 {[%clk 0:02:59]} 5. Nge2 {[%clk 0:02:59]}  d6 {[%clk 0:02:56]} 6. d3 {[%clk 0:02:57]}  a5 {[%clk 0:02:56]} 7. O-O {[%clk 0:02:53]}  O-O {[%clk 0:02:54]} 8. h3 {[%clk 0:02:52]}  Be6 {[%clk 0:02:39]} 9. Kh2 {[%clk 0:02:52]}  d5 {[%clk 0:02:39]} 10. f4 {[%clk 0:02:52]}  dxe4 {[%clk 0:02:37]} 11. Nxe4 {[%clk 0:02:51]}  Nxe4 {[%clk 0:02:35]} 12. Bxe4 {[%clk 0:02:51]}  Bd5 {[%clk 0:02:25]} 13. Nc3 {[%clk 0:02:46]}  Bxe4 {[%clk 0:02:25]} 14. Nxe4 {[%clk 0:02:46]}  Be7 {[%clk 0:02:25]} 15. f5 {[%clk 0:02:44]}  f6 {[%clk 0:02:26]} 16. Be3 {[%clk 0:02:39]}  a4 {[%clk 0:02:25]} 17. g4 {[%clk 0:02:26]}  Kh8 {[%clk 0:02:24]} 18. h4 {[%clk 0:02:24]}  a3 {[%clk 0:02:23]} 19. b3 {[%clk 0:02:24]}  Qd7 {[%clk 0:02:20]} 20. Qf3 {[%clk 0:02:20]}  Nb4 {[%clk 0:02:18]} 21. Rf2 {[%clk 0:02:15]}  Ra6 {[%clk 0:02:16]} 22. g5 {[%clk 0:02:06]}  fxg5 {[%clk 0:02:16]} 23. hxg5 {[%clk 0:02:05]}  Nd5 {[%clk 0:02:11]} 24. Bd2 {[%clk 0:01:55]}  Nf4 {[%clk 0:01:57]} 25. Bxf4 {[%clk 0:01:40]}  Qxf5 {[%clk 0:01:55]} 26. Raf1 {[%clk 0:01:24]}  exf4 {[%clk 0:01:43]} 27. Qxf4 {[%clk 0:01:21]}  Qxf4+ {[%clk 0:01:43]} 28. Rxf4 {[%clk 0:01:22]}  Rxf4 {[%clk 0:01:41]} 29. Rxf4 {[%clk 0:01:23]}  Kg8 {[%clk 0:01:40]} 30. Kg3 {[%clk 0:01:21]}  b5 {[%clk 0:01:35]} 31. Kg4 {[%clk 0:01:19]}  b4 {[%clk 0:01:29]} 32. Nd2 {[%clk 0:01:16]}  Ra5 {[%clk 0:01:23]} 33. Rf5 {[%clk 0:01:11]}  Rxf5 {[%clk 0:01:22]} 34. Kxf5 {[%clk 0:01:11]}  g6+ {[%clk 0:01:22]} 35. Kf4 {[%clk 0:01:09]}  Kf7 {[%clk 0:01:22]} 36. Nf3 {[%clk 0:01:05]}  Ke6 {[%clk 0:01:21]} 37. Ke4 {[%clk 0:01:03]}  c5 {[%clk 0:01:20]} 38. d4 {[%clk 0:00:58]}  cxd4 {[%clk 0:01:18]} 39. Nxd4+ {[%clk 0:00:59]}  Kd6 {[%clk 0:01:18]} 40. Nf3 {[%clk 0:00:59]}  Bd8 {[%clk 0:01:05]} 41. Kd4 {[%clk 0:00:55]}  Ke6 {[%clk 0:01:05]} 42. Ke4 {[%clk 0:00:55]}  Kd6 {[%clk 0:00:37]} 43. Kd4 {[%clk 0:00:52]}  Be7 {[%clk 0:00:29]} 44. Ke4 {[%clk 0:00:47]}  Kc5 {[%clk 0:00:20]} 45. Ke5 {[%clk 0:00:43]}  Bd6+ {[%clk 0:00:20]} 46. Ke6 {[%clk 0:00:42]}  Bf4 {[%clk 0:00:20]} 47. Kf6 {[%clk 0:00:35]}  Kd5 {[%clk 0:00:20]} 48. Ne1 {[%clk 0:00:29]}  Be5+ {[%clk 0:00:15]} 49. Kf7 {[%clk 0:00:28]}  Kd4 {[%clk 0:00:15]} 50. Nd3 {[%clk 0:00:27]}  Bd6 {[%clk 0:00:13]} 51. Ke6 {[%clk 0:00:22]}  Bf8 {[%clk 0:00:13]} 52. Kf7 {[%clk 0:00:22]}  Bc5 {[%clk 0:00:13]} 53. Kg7 {[%clk 0:00:19]}  Be7 {[%clk 0:00:13]} 54. Kxh7 {[%clk 0:00:18]}  Kc3 {[%clk 0:00:12]} 55. Kxg6 {[%clk 0:00:17]}  Kxc2 {[%clk 0:00:13]} 56. Kf7 {[%clk 0:00:14]}  Bxg5 {[%clk 0:00:09]} 57. Nxb4+ {[%clk 0:00:14]}  Kb2 {[%clk 0:00:09]} 58. Nd3+ {[%clk 0:00:04]}  Kxa2 {[%clk 0:00:08]} 59. b4 {[%clk 0:00:03]}  Kb1 {[%clk 0:00:07]} 60. b5 {[%clk 0:00:03]}  a2 {[%clk 0:00:08]} 61. b6 {[%clk 0:00:03]}  a1=Q {[%clk 0:00:08]} 62. b7 {[%clk 0:00:03]}  Qa7 {[%clk 0:00:08]} 0-1


[Site "https://www.chess.com"]

[Event "Titled Tuesday Blitz October 11 Early 2022"]
[White "Costachi, Mihnea"]
[Black "Moreno Perez, Tobias Sebastian"]
[WhiteFideId "1217518"]
[BlackFideId "186716"]
[WhiteElo "2437"]
[BlackElo "2491"]
[Result "1-0"]
[Round "04"]
[TimeControl "180+1"]
[Date "2022.10.12"]
[WhiteClock "0:01:43"]
[BlackClock "0:00:02"]

1. e4 {[%clk 0:03:00]}  c6 {[%clk 0:02:59]} 2. Nc3 {[%clk 0:02:59]}  d5 {[%clk 0:02:59]} 3. Nf3 {[%clk 0:02:58]}  dxe4 {[%clk 0:02:58]} 4. Nxe4 {[%clk 0:02:58]}  Nf6 {[%clk 0:02:57]} 5. Qe2 {[%clk 0:02:57]}  Nxe4 {[%clk 0:02:57]} 6. Qxe4 {[%clk 0:02:57]}  Nd7 {[%clk 0:02:58]} 7. d4 {[%clk 0:02:56]}  Nf6 {[%clk 0:02:57]} 8. Qd3 {[%clk 0:02:49]}  g6 {[%clk 0:02:46]} 9. Be2 {[%clk 0:02:47]}  Bg7 {[%clk 0:02:40]} 10. O-O {[%clk 0:02:47]}  O-O {[%clk 0:02:40]} 11. Bf4 {[%clk 0:02:45]}  Bf5 {[%clk 0:02:40]} 12. Qb3 {[%clk 0:02:44]}  Qb6 {[%clk 0:02:39]} 13. c3 {[%clk 0:02:36]}  Qxb3 {[%clk 0:02:16]} 14. axb3 {[%clk 0:02:36]}  a6 {[%clk 0:02:16]} 15. b4 {[%clk 0:02:34]}  Nd5 {[%clk 0:02:09]} 16. Be5 {[%clk 0:02:33]}  Rfe8 {[%clk 0:01:47]} 17. Rfe1 {[%clk 0:02:32]}  Bg4 {[%clk 0:01:33]} 18. Bxg7 {[%clk 0:02:28]}  Bxf3 {[%clk 0:01:28]} 19. Bxf3 {[%clk 0:02:18]}  Kxg7 {[%clk 0:01:27]} 20. Bxd5 {[%clk 0:02:19]}  cxd5 {[%clk 0:01:27]} 21. Ra5 {[%clk 0:02:20]}  e6 {[%clk 0:01:21]} 22. Rea1 {[%clk 0:02:20]}  Rac8 {[%clk 0:00:58]} 23. b5 {[%clk 0:02:19]}  axb5 {[%clk 0:00:59]} 24. Rxb5 {[%clk 0:02:20]}  Rc7 {[%clk 0:00:59]} 25. Ra7 {[%clk 0:02:19]}  Ree7 {[%clk 0:00:59]} 26. Rb6 {[%clk 0:02:16]}  Red7 {[%clk 0:00:52]} 27. Kf1 {[%clk 0:02:13]}  Kf8 {[%clk 0:00:51]} 28. Ra8+ {[%clk 0:02:11]}  Ke7 {[%clk 0:00:51]} 29. Rb8 {[%clk 0:02:12]}  h5 {[%clk 0:00:30]} 30. Ke2 {[%clk 0:02:11]}  Kf6 {[%clk 0:00:29]} 31. Ke3 {[%clk 0:02:11]}  Kf5 {[%clk 0:00:30]} 32. Kd3 {[%clk 0:02:08]}  f6 {[%clk 0:00:23]} 33. h4 {[%clk 0:02:04]}  Kg4 {[%clk 0:00:16]} 34. Rxe6 {[%clk 0:01:58]}  Kxh4 {[%clk 0:00:13]} 35. Rxf6 {[%clk 0:01:59]}  Kg5 {[%clk 0:00:13]} 36. Rb6 {[%clk 0:01:52]}  Rf7 {[%clk 0:00:13]} 37. f3 {[%clk 0:01:49]}  Rcd7 {[%clk 0:00:11]} 38. Rg8 {[%clk 0:01:49]}  Rf6 {[%clk 0:00:09]} 39. Rxf6 {[%clk 0:01:48]}  Kxf6 {[%clk 0:00:10]} 40. Re8 {[%clk 0:01:48]}  Kg5 {[%clk 0:00:09]} 41. Ke3 {[%clk 0:01:45]}  Kh4 {[%clk 0:00:03]} 42. Re5 {[%clk 0:01:42]}  Kg3 {[%clk 0:00:02]} 43. Rg5+ {[%clk 0:01:42]}  Kh4 {[%clk 0:00:02]} 44. Rxg6 {[%clk 0:01:43]} 1-0


[Site "https://www.chess.com"]

[Event "Titled Tuesday Blitz October 11 Early 2022"]
[White "Dardha, Daniel"]
[Black "Orlov, Georgi"]
[WhiteFideId "240990"]
[BlackFideId "2011271"]
[WhiteElo "2528"]
[BlackElo "2578"]
[Result "1-0"]
[Round "04"]
[TimeControl "180+1"]
[Date "2022.10.12"]
[WhiteClock "0:00:07"]
[BlackClock "0:00:01"]

1. e4 {[%clk 0:03:00]}  b6 {[%clk 0:02:58]} 2. d4 {[%clk 0:02:56]}  Bb7 {[%clk 0:02:58]} 3. Bd3 {[%clk 0:02:57]}  Nf6 {[%clk 0:02:57]} 4. Nd2 {[%clk 0:02:52]}  e6 {[%clk 0:02:54]} 5. Ngf3 {[%clk 0:02:48]}  c5 {[%clk 0:02:44]} 6. c3 {[%clk 0:02:46]}  d5 {[%clk 0:02:30]} 7. e5 {[%clk 0:02:45]}  Nfd7 {[%clk 0:02:27]} 8. a3 {[%clk 0:02:45]}  Ba6 {[%clk 0:02:22]} 9. Bxa6 {[%clk 0:02:40]}  Nxa6 {[%clk 0:02:21]} 10. O-O {[%clk 0:02:41]}  Be7 {[%clk 0:02:13]} 11. Re1 {[%clk 0:02:40]}  Qc7 {[%clk 0:02:07]} 12. Nf1 {[%clk 0:02:40]}  Rc8 {[%clk 0:01:44]} 13. Bg5 {[%clk 0:02:36]}  Bxg5 {[%clk 0:01:41]} 14. Nxg5 {[%clk 0:02:37]}  h6 {[%clk 0:01:34]} 15. Qh5 {[%clk 0:02:34]}  O-O {[%clk 0:01:31]} 16. Nf3 {[%clk 0:02:29]}  cxd4 {[%clk 0:01:03]} 17. Nxd4 {[%clk 0:02:25]}  Nac5 {[%clk 0:00:58]} 18. Re3 {[%clk 0:02:25]}  Na4 {[%clk 0:00:45]} 19. Rb1 {[%clk 0:02:07]}  Kh7 {[%clk 0:00:16]} 20. Nd2 {[%clk 0:01:55]}  Rce8 {[%clk 0:00:13]} 21. f4 {[%clk 0:01:42]}  g6 {[%clk 0:00:13]} 22. Qh4 {[%clk 0:01:39]}  Kg7 {[%clk 0:00:12]} 23. Rh3 {[%clk 0:01:15]}  Rh8 {[%clk 0:00:12]} 24. Rg3 {[%clk 0:01:15]}  Nac5 {[%clk 0:00:09]} 25. Rf1 {[%clk 0:01:11]}  Ne4 {[%clk 0:00:08]} 26. Nxe4 {[%clk 0:01:11]}  dxe4 {[%clk 0:00:08]} 27. f5 {[%clk 0:01:06]}  Qxe5 {[%clk 0:00:07]} 28. fxe6 {[%clk 0:01:04]}  fxe6 {[%clk 0:00:07]} 29. Qg4 {[%clk 0:00:52]}  g5 {[%clk 0:00:06]} 30. Re3 {[%clk 0:00:41]}  Nf6 {[%clk 0:00:06]} 31. Qe2 {[%clk 0:00:40]}  Qd5 {[%clk 0:00:03]} 32. h3 {[%clk 0:00:36]}  Rhf8 {[%clk 0:00:03]} 33. Rd1 {[%clk 0:00:36]}  Qe5 {[%clk 0:00:02]} 34. Qa6 {[%clk 0:00:33]}  Nd5 {[%clk 0:00:02]} 35. Re2 {[%clk 0:00:30]}  Qg3 {[%clk 0:00:02]} 36. Qb7+ {[%clk 0:00:25]}  Rf7 {[%clk 0:00:02]} 37. Nxe6+ {[%clk 0:00:25]}  Rxe6 {[%clk 0:00:01]} 38. Qxd5 {[%clk 0:00:26]}  Ref6 {[%clk 0:00:02]} 39. Qxe4 {[%clk 0:00:24]}  Rf2 {[%clk 0:00:02]} 40. Qd4+ {[%clk 0:00:18]}  R2f6 {[%clk 0:00:02]} 41. Rf1 {[%clk 0:00:18]}  Kg6 {[%clk 0:00:01]} 42. Qe4+ {[%clk 0:00:16]}  Kg7 {[%clk 0:00:01]} 43. Qd4 {[%clk 0:00:13]}  Kg6 {[%clk 0:00:01]} 44. Rxf6+ {[%clk 0:00:12]}  Rxf6 {[%clk 0:00:01]} 45. Re8 {[%clk 0:00:07]} 1-0


[Site "https://www.chess.com"]

[Event "Titled Tuesday Blitz October 11 Early 2022"]
[White "Demin, Vladimir"]
[Black "Leiva, Gianmarco"]
[WhiteFideId "4167457"]
[BlackFideId "3804399"]
[WhiteElo "2569"]
[BlackElo "2285"]
[Result "0-1"]
[Round "04"]
[TimeControl "180+1"]
[Date "2022.10.12"]
[WhiteClock "0:00:29"]
[BlackClock "0:00:37"]

1. d4 {[%clk 0:03:00]}  Nf6 {[%clk 0:02:59]} 2. Nc3 {[%clk 0:03:01]}  d5 {[%clk 0:02:59]} 3. Bf4 {[%clk 0:03:01]}  c5 {[%clk 0:02:57]} 4. e4 {[%clk 0:03:01]}  Nxe4 {[%clk 0:02:50]} 5. Nxe4 {[%clk 0:03:00]}  dxe4 {[%clk 0:02:50]} 6. dxc5 {[%clk 0:03:01]}  Qa5+ {[%clk 0:02:44]} 7. c3 {[%clk 0:03:01]}  Qxc5 {[%clk 0:02:40]} 8. Qa4+ {[%clk 0:03:01]}  Nc6 {[%clk 0:02:34]} 9. Qxe4 {[%clk 0:03:01]}  Bf5 {[%clk 0:02:33]} 10. Qa4 {[%clk 0:03:01]}  e5 {[%clk 0:02:24]} 11. Be3 {[%clk 0:02:57]}  Qa5 {[%clk 0:02:19]} 12. Qxa5 {[%clk 0:02:46]}  Nxa5 {[%clk 0:02:20]} 13. Bb5+ {[%clk 0:02:46]}  Kd8 {[%clk 0:02:11]} 14. O-O-O+ {[%clk 0:02:45]}  Kc7 {[%clk 0:02:12]} 15. f4 {[%clk 0:02:42]}  a6 {[%clk 0:02:05]} 16. Be2 {[%clk 0:02:41]}  e4 {[%clk 0:01:53]} 17. b4 {[%clk 0:02:19]}  Nc6 {[%clk 0:01:47]} 18. g4 {[%clk 0:02:20]}  Be6 {[%clk 0:01:48]} 19. Kb2 {[%clk 0:02:19]}  f5 {[%clk 0:01:48]} 20. Nh3 {[%clk 0:02:14]}  Be7 {[%clk 0:01:43]} 21. Nf2 {[%clk 0:02:11]}  g6 {[%clk 0:01:39]} 22. a4 {[%clk 0:02:00]}  Bf6 {[%clk 0:01:38]} 23. Kc2 {[%clk 0:01:50]}  Rac8 {[%clk 0:01:35]} 24. a5 {[%clk 0:01:31]}  Kb8 {[%clk 0:01:31]} 25. Bc5 {[%clk 0:01:32]}  Rhd8 {[%clk 0:01:06]} 26. g5 {[%clk 0:01:27]}  Be7 {[%clk 0:01:03]} 27. Rxd8 {[%clk 0:01:26]}  Rxd8 {[%clk 0:01:00]} 28. Bxe7 {[%clk 0:01:07]}  Nxe7 {[%clk 0:01:01]} 29. c4 {[%clk 0:01:08]}  Nc6 {[%clk 0:00:58]} 30. Kc3 {[%clk 0:01:07]}  Nd4 {[%clk 0:00:58]} 31. Re1 {[%clk 0:00:58]}  Bf7 {[%clk 0:00:47]} 32. c5 {[%clk 0:00:47]}  Kc7 {[%clk 0:00:41]} 33. Bd1 {[%clk 0:00:40]}  Nb5+ {[%clk 0:00:38]} 34. Kb2 {[%clk 0:00:29]}  Rd2+ {[%clk 0:00:37]} 0-1


[Site "https://www.chess.com"]

[Event "Titled Tuesday Blitz October 11 Early 2022"]
[White "Drozdowski, Kacper"]
[Black "Duda, Jan-Krzysztof"]
[WhiteFideId "1136720"]
[BlackFideId "1170546"]
[WhiteElo "2485"]
[BlackElo "2779"]
[Result "1-0"]
[Round "04"]
[TimeControl "180+1"]
[Date "2022.10.11"]
[WhiteClock "0:00:06"]
[BlackClock "0:00:02"]

1. e4 {[%clk 0:03:00]}  c6 {[%clk 0:02:59]} 2. d4 {[%clk 0:03:00]}  d5 {[%clk 0:03:00]} 3. Nc3 {[%clk 0:03:00]}  dxe4 {[%clk 0:02:59]} 4. Nxe4 {[%clk 0:03:01]}  Nf6 {[%clk 0:03:00]} 5. Nxf6+ {[%clk 0:03:01]}  exf6 {[%clk 0:03:01]} 6. c3 {[%clk 0:03:02]}  Bd6 {[%clk 0:03:01]} 7. Bd3 {[%clk 0:03:02]}  O-O {[%clk 0:03:00]} 8. Ne2 {[%clk 0:03:03]}  Re8 {[%clk 0:03:00]} 9. Qc2 {[%clk 0:03:03]}  h5 {[%clk 0:02:59]} 10. Be3 {[%clk 0:03:03]}  Nd7 {[%clk 0:02:58]} 11. Ng3 {[%clk 0:02:58]}  Bf4 {[%clk 0:02:31]} 12. O-O {[%clk 0:02:47]}  Bxe3 {[%clk 0:02:30]} 13. fxe3 {[%clk 0:02:47]}  Rxe3 {[%clk 0:02:30]} 14. Nxh5 {[%clk 0:02:36]}  Nf8 {[%clk 0:02:28]} 15. Rae1 {[%clk 0:02:31]}  Rxe1 {[%clk 0:02:25]} 16. Rxe1 {[%clk 0:02:32]}  Bg4 {[%clk 0:02:19]} 17. Ng3 {[%clk 0:02:30]}  g6 {[%clk 0:02:08]} 18. Qf2 {[%clk 0:02:24]}  Be6 {[%clk 0:02:07]} 19. Ne4 {[%clk 0:02:20]}  f5 {[%clk 0:02:06]} 20. Nc5 {[%clk 0:02:19]}  Qc7 {[%clk 0:01:57]} 21. Qh4 {[%clk 0:02:06]}  b6 {[%clk 0:01:52]} 22. Re3 {[%clk 0:01:43]}  Qd8 {[%clk 0:01:44]} 23. Qxd8 {[%clk 0:01:33]}  Rxd8 {[%clk 0:01:45]} 24. Nxe6 {[%clk 0:01:32]}  fxe6 {[%clk 0:01:41]} 25. a4 {[%clk 0:01:17]}  Kf7 {[%clk 0:01:39]} 26. Kf2 {[%clk 0:01:17]}  Kf6 {[%clk 0:01:39]} 27. h4 {[%clk 0:01:16]}  c5 {[%clk 0:01:37]} 28. dxc5 {[%clk 0:01:13]}  bxc5 {[%clk 0:01:38]} 29. Ke2 {[%clk 0:01:07]}  e5 {[%clk 0:01:32]} 30. Bc4 {[%clk 0:00:58]}  e4 {[%clk 0:01:30]} 31. b4 {[%clk 0:00:51]}  Nd7 {[%clk 0:01:26]} 32. Bb5 {[%clk 0:00:46]}  Ne5 {[%clk 0:01:10]} 33. bxc5 {[%clk 0:00:46]}  Rc8 {[%clk 0:01:09]} 34. Rh3 {[%clk 0:00:46]}  Rxc5 {[%clk 0:01:07]} 35. c4 {[%clk 0:00:34]}  Nd3 {[%clk 0:00:57]} 36. g3 {[%clk 0:00:32]}  f4 {[%clk 0:00:53]} 37. Kd2 {[%clk 0:00:27]}  Nf2 {[%clk 0:00:48]} 38. Rh2 {[%clk 0:00:25]}  Ng4 {[%clk 0:00:48]} 39. Re2 {[%clk 0:00:19]}  e3+ {[%clk 0:00:46]} 40. Kd3 {[%clk 0:00:20]}  f3 {[%clk 0:00:41]} 41. Rxe3 {[%clk 0:00:19]}  Nxe3 {[%clk 0:00:15]} 42. Kxe3 {[%clk 0:00:20]}  Rf5 {[%clk 0:00:16]} 43. Kf2 {[%clk 0:00:20]}  Ke5 {[%clk 0:00:10]} 44. Bc6 {[%clk 0:00:19]}  Kd4 {[%clk 0:00:08]} 45. Bxf3 {[%clk 0:00:18]}  a5 {[%clk 0:00:07]} 46. Kg2 {[%clk 0:00:14]}  Kxc4 {[%clk 0:00:06]} 47. Bc6 {[%clk 0:00:14]}  Kc5 {[%clk 0:00:03]} 48. Be8 {[%clk 0:00:14]}  Rf6 {[%clk 0:00:04]} 49. Kh3 {[%clk 0:00:14]}  Kd6 {[%clk 0:00:03]} 50. Kg4 {[%clk 0:00:14]}  Ke7 {[%clk 0:00:04]} 51. Bb5 {[%clk 0:00:15]}  Rf5 {[%clk 0:00:04]} 52. Bc6 {[%clk 0:00:15]}  Kf6 {[%clk 0:00:03]} 53. Bd7 {[%clk 0:00:14]}  Rd5 {[%clk 0:00:04]} 54. Be8 {[%clk 0:00:15]}  Rd4+ {[%clk 0:00:05]} 55. Kf3 {[%clk 0:00:15]}  Kf5 {[%clk 0:00:04]} 56. Bc6 {[%clk 0:00:15]}  Rd3+ {[%clk 0:00:04]} 57. Kf2 {[%clk 0:00:12]}  Kg4 {[%clk 0:00:05]} 58. Be8 {[%clk 0:00:07]}  Rf3+ {[%clk 0:00:03]} 59. Ke2 {[%clk 0:00:07]}  Rxg3 {[%clk 0:00:02]} 60. Bxg6 {[%clk 0:00:07]}  Kxh4 {[%clk 0:00:02]} 61. Be8 {[%clk 0:00:07]}  Kg5 {[%clk 0:00:02]} 62. Bd7 {[%clk 0:00:07]}  Kf4 {[%clk 0:00:03]} 63. Kd2 {[%clk 0:00:06]}  Ke4 {[%clk 0:00:04]} 64. Bb5 {[%clk 0:00:07]}  Kd4 {[%clk 0:00:04]} 65. Kc2 {[%clk 0:00:07]}  Rc3+ {[%clk 0:00:04]} 66. Kb2 {[%clk 0:00:07]}  Rg3 {[%clk 0:00:04]} 67. Kc2 {[%clk 0:00:08]}  Kc5 {[%clk 0:00:03]} 68. Kb2 {[%clk 0:00:08]}  Kb4 {[%clk 0:00:04]} 69. Kc2 {[%clk 0:00:09]}  Rc3+ {[%clk 0:00:04]} 70. Kb2 {[%clk 0:00:09]}  Rc7 {[%clk 0:00:03]} 71. Be8 {[%clk 0:00:09]}  Rc8 {[%clk 0:00:03]} 72. Bb5 {[%clk 0:00:10]}  Rc7 {[%clk 0:00:02]} 73. Be8 {[%clk 0:00:10]}  Rc3 {[%clk 0:00:01]} 74. Bb5 {[%clk 0:00:10]}  Rc8 {[%clk 0:00:01]} 75. Bd7 {[%clk 0:00:10]}  Rd8 {[%clk 0:00:02]} 76. Bb5 {[%clk 0:00:09]}  Rd2+ {[%clk 0:00:03]} 77. Kc1 {[%clk 0:00:09]}  Kc3 {[%clk 0:00:03]} 78. Kb1 {[%clk 0:00:09]}  Rc2 {[%clk 0:00:03]} 79. Be8 {[%clk 0:00:08]}  Re2 {[%clk 0:00:02]} 80. Bb5 {[%clk 0:00:08]}  Rb2+ {[%clk 0:00:02]} 81. Kc1 {[%clk 0:00:06]}  Kb3 {[%clk 0:00:02]} 82. Be8 {[%clk 0:00:06]}  Rc2+ {[%clk 0:00:02]} 83. Kd1 {[%clk 0:00:06]} 1-0


[Site "https://www.chess.com"]

[Event "Titled Tuesday Blitz October 11 Early 2022"]
[White "Dushyant Sharma"]
[Black "Gonzalez, Francisco Silva"]
[WhiteFideId "25065130"]
[BlackFideId "1512285"]
[WhiteElo "2270"]
[BlackElo "2159"]
[Result "1-0"]
[Round "04"]
[TimeControl "180+1"]
[Date "2022.10.12"]
[WhiteClock "0:00:16"]
[BlackClock "0:00:47"]

1. e4 {[%clk 0:03:00]}  e5 {[%clk 0:02:56]} 2. Nf3 {[%clk 0:03:01]}  Nc6 {[%clk 0:02:56]} 3. Nc3 {[%clk 0:03:01]}  Nf6 {[%clk 0:02:55]} 4. Bb5 {[%clk 0:03:02]}  Bb4 {[%clk 0:02:55]} 5. O-O {[%clk 0:03:01]}  O-O {[%clk 0:02:55]} 6. d3 {[%clk 0:03:01]}  d6 {[%clk 0:02:54]} 7. Bg5 {[%clk 0:03:02]}  Bxc3 {[%clk 0:02:55]} 8. bxc3 {[%clk 0:03:02]}  Bd7 {[%clk 0:02:54]} 9. d4 {[%clk 0:03:00]}  Re8 {[%clk 0:02:53]} 10. Re1 {[%clk 0:02:59]}  h6 {[%clk 0:02:47]} 11. Bh4 {[%clk 0:02:59]}  Ne7 {[%clk 0:02:45]} 12. Bxf6 {[%clk 0:02:48]}  Bxb5 {[%clk 0:02:44]} 13. Bh4 {[%clk 0:02:48]}  f6 {[%clk 0:02:42]} 14. Rb1 {[%clk 0:02:45]}  Ba6 {[%clk 0:02:38]} 15. Bg3 {[%clk 0:02:29]}  Ng6 {[%clk 0:02:37]} 16. Nh4 {[%clk 0:02:29]}  Nxh4 {[%clk 0:02:36]} 17. Bxh4 {[%clk 0:02:30]}  g5 {[%clk 0:02:37]} 18. Bg3 {[%clk 0:02:28]}  Qe7 {[%clk 0:02:32]} 19. Qh5 {[%clk 0:02:05]}  Kg7 {[%clk 0:02:33]} 20. h4 {[%clk 0:02:01]}  Qe6 {[%clk 0:02:29]} 21. Rb3 {[%clk 0:01:54]}  b6 {[%clk 0:02:26]} 22. a4 {[%clk 0:01:38]}  Bc4 {[%clk 0:02:24]} 23. Rb4 {[%clk 0:01:39]}  a5 {[%clk 0:02:18]} 24. d5 {[%clk 0:01:36]}  Bxd5 {[%clk 0:02:17]} 25. exd5 {[%clk 0:01:35]}  Qxd5 {[%clk 0:02:14]} 26. Rbb1 {[%clk 0:01:32]}  Qf7 {[%clk 0:02:10]} 27. Qf3 {[%clk 0:01:29]}  Qe6 {[%clk 0:02:05]} 28. Rbd1 {[%clk 0:01:19]}  Rad8 {[%clk 0:02:04]} 29. Qc6 {[%clk 0:01:13]}  Qf7 {[%clk 0:01:58]} 30. c4 {[%clk 0:01:08]}  Qd7 {[%clk 0:01:50]} 31. Qb7 {[%clk 0:00:52]}  Rb8 {[%clk 0:01:48]} 32. Qe4 {[%clk 0:00:44]}  Qxa4 {[%clk 0:01:47]} 33. h5 {[%clk 0:00:44]}  Kf8 {[%clk 0:01:39]} 34. Qg6 {[%clk 0:00:40]}  Ke7 {[%clk 0:01:39]} 35. Qg7+ {[%clk 0:00:39]}  Ke6 {[%clk 0:01:38]} 36. f4 {[%clk 0:00:33]}  gxf4 {[%clk 0:01:32]} 37. Bh4 {[%clk 0:00:19]}  Rf8 {[%clk 0:01:27]} 38. c5 {[%clk 0:00:04]}  Qc6 {[%clk 0:01:20]} 39. cxd6 {[%clk 0:00:03]}  cxd6 {[%clk 0:01:17]} 40. Qg4+ {[%clk 0:00:03]}  f5 {[%clk 0:01:09]} 41. Qg6+ {[%clk 0:00:03]}  Kd7 {[%clk 0:01:06]} 42. Rxe5 {[%clk 0:00:04]}  Rbe8 {[%clk 0:01:00]} 43. Rxe8 {[%clk 0:00:04]}  Rxe8 {[%clk 0:01:00]} 44. Qf7+ {[%clk 0:00:05]}  Kc8 {[%clk 0:00:59]} 45. Rxd6 {[%clk 0:00:04]}  Qc5+ {[%clk 0:00:57]} 46. Kh2 {[%clk 0:00:04]}  Qxd6 {[%clk 0:00:54]} 47. Qxe8+ {[%clk 0:00:05]}  Kc7 {[%clk 0:00:55]} 48. Qf7+ {[%clk 0:00:06]}  Kc6 {[%clk 0:00:54]} 49. Qxf5 {[%clk 0:00:06]}  f3+ {[%clk 0:00:54]} 50. Bg3 {[%clk 0:00:07]}  Qd5 {[%clk 0:00:48]} 51. Qxf3 {[%clk 0:00:07]}  Qxf3 {[%clk 0:00:44]} 52. gxf3 {[%clk 0:00:08]}  Kd5 {[%clk 0:00:45]} 53. Bh4 {[%clk 0:00:08]}  Ke6 {[%clk 0:00:44]} 54. Be1 {[%clk 0:00:08]}  a4 {[%clk 0:00:43]} 55. Bb4 {[%clk 0:00:08]}  Kd5 {[%clk 0:00:43]} 56. c3 {[%clk 0:00:08]}  Kc4 {[%clk 0:00:43]} 57. Kg3 {[%clk 0:00:09]}  Kb3 {[%clk 0:00:43]} 58. f4 {[%clk 0:00:09]}  a3 {[%clk 0:00:44]} 59. Bxa3 {[%clk 0:00:10]}  Kxa3 {[%clk 0:00:44]} 60. f5 {[%clk 0:00:11]}  Kb3 {[%clk 0:00:45]} 61. f6 {[%clk 0:00:12]}  Kxc3 {[%clk 0:00:45]} 62. f7 {[%clk 0:00:12]}  b5 {[%clk 0:00:46]} 63. f8=Q {[%clk 0:00:13]}  b4 {[%clk 0:00:46]} 64. Qc5+ {[%clk 0:00:14]}  Kb3 {[%clk 0:00:47]} 65. Kf4 {[%clk 0:00:15]}  Ka4 {[%clk 0:00:47]} 66. Kf5 {[%clk 0:00:16]}  b3 {[%clk 0:00:48]} 67. Kg6 {[%clk 0:00:16]}  b2 {[%clk 0:00:48]} 68. Qb6 {[%clk 0:00:16]}  Ka3 {[%clk 0:00:48]} 69. Kxh6 {[%clk 0:00:17]}  b1=N {[%clk 0:00:47]} 70. Qxb1 {[%clk 0:00:16]} 1-0


[Site "https://www.chess.com"]